Cogmind - Beta 14 @@@ ROGUE MODE // 2024.10.07 @ 01:39:33 Player: Angler Result: Destroyed by G-34 Mercenary with Small Laser Performance ------------- Evolutions (0) 0 Regions Visited (1) 200 Robots Destroyed (12) 60 Value Destroyed (302) 302 Prototype IDs (0) 0 Alien Tech Used (0) 0 Bonus (0) 0 TOTAL SCORE: 562 Bonus ------- None Cogmind --------- Core Integrity 0/250 Matter 300/300 Energy 250/250 System Corruption 0% Temperature Cool (6) Movement Core (1450) Ox28 Location -10/Materials Parts ------- > --- POWER (1) -------- Ion Engine > --- PROPULSION (2) --- (None) > --- UTILITY (2) ------ Huge Storage Unit > --- WEAPON (2) ------- (None) > --- INVENTORY (25) --- Sensor Array Signal Interpreter Improved Terrain Scanner Seismic Detector Peak State ------------ > --- POWER ------------ Ion Engine > --- PROPULSION ------- Aluminum Leg Aluminum Leg > --- UTILITY ---------- Improved Terrain Scanner Seismic Detector > --- WEAPON ----------- Assault Rifle Light Assault Rifle > --- INVENTORY -------- Light Ion Engine Aluminum Leg Aluminum Leg Medium Laser [Rating: 9] Favorites ----------- Power Ion Engine Engine Ion Engine Propulsion Aluminum Leg Leg Aluminum Leg Utility Seismic Detector Device Seismic Detector Storage Huge Storage Unit Weapon Light Assault Rifle Energy Gun Medium Laser Ballistic Gun Light Assault Rifle Build | -11 -10 ------- Run | Yrd Mat Slots Evolved . | . . Power . | . . Propulsion . | . . Utility . | . . Weapon . | . . Parts Attached 17 | 9 8 Power 4 | 2 2 Engine 4 | 2 2 Core . | . . Reactor . | . . Propulsion 6 | 2 4 Treads . | . . Leg 6 | 2 4 Wheel . | . . Hover . | . . Flight . | . . Utility 4 | 3 1 Device 3 | 3 . Storage 1 | . 1 Processor . | . . Hackware . | . . Protection . | . . Artifact . | . . Weapon 3 | 2 1 Energy Gun 1 | . 1 Energy Cannon . | . . Ballistic Gun 2 | 2 . Ballistic Cannon . | . . Launcher . | . . Special Weapon . | . . Impact Weapon . | . . Slashing Weapon . | . . Piercing Weapon . | . . Special Melee Weapon . | . . Unidentified Prototypes . | . . Parts Lost 11 | . 11 Power 2 | . 2 Propulsion 5 | . 5 Utility 1 | . 1 Weapon 3 | . 3 Highest Loss Streak 4 | . 4 To Critical Strikes . | . . Average Slot Usage (%) 79 | . 79 Engine 11 | . 11 Leg 24 | . 24 Device 12 | . 12 Storage 12 | . 12 Energy Gun 7 | . 7 Ballistic Gun 9 | . 9 Peak Build Rating 9 | 9 9 Average Rating 5 | 5 5 On Entrance 4 | . 9 Naked Turns . | . . Heaviest Build 89 | 10 89 Greatest Support 20 | 20 20 Greatest Overweight (x) 28 | . 28 Average Overweight (x) 1 | . 3 Largest Inventory Capacity 25 | 5 25 Average Capacity 16 | 5 23 Most Carried 6 | 5 6 Average Carried 3 | 3 4 Final Capacity 25 | 5 25 Final Carried 5 | 5 4 Class Distribution -------------------- 79% | Mutant 20% | Scavenger-Mutant Dominant Class ---------------- Mutant | -10/Materials Resources | -11 -10 ----------- Run | Yrd Mat Matter Collected 459 | 350 109 Remotely . | . . Salvage Created 395 | 112 283 Parts 33 | 13 20 Haulers Intercepted . | . . Recyclers Shooed . | . . Parts Field Recycled . | . . Retrieved Matter . | . . Parts Self-Destructed . | . . Prevented . | . . Kills | -11 -10 ------- Run | Yrd Mat Combat Hostiles Destroyed 7 | 1 6 Melee 1 | . 1 Guns 6 | 1 5 Classes Destroyed 4 | 2 2 Worker 1 | . 1 Tunneler 3 | 3 . Watcher 1 | . 1 Grunt 7 | 1 6 Best Kill Streak 2 | 2 2 Combat Bots Only 2 | 1 2 Max Kills in Single Turn 1 | 1 1 Gunslinging . | . . Exploded . | . . Melee 1 | . 1 Uniques/NPCs Destroyed . | . . Combat | -11 -10 -------- Run | Yrd Mat Hostile Shots Fired 127 | 7 120 Missed 28 | 3 25 Damage Taken 1189 | 44 1145 Core 254 | 21 233 Absorbed by Shields . | . . Core Remaining (%) 91 | 91 . Volleys Fired 57 | 15 42 Largest 2 | 2 2 Hottest 70 | 40 70 Shots Fired 96 | 30 66 Gun 96 | 30 66 Cannon . | . . Launcher . | . . Special . | . . Kinetic 69 | 30 39 Thermal 27 | . 27 Explosive . | . . Electromagnetic . | . . Robot Hit Streak 19 | 9 19 Robot Miss Streak 3 | 3 3 Penetration Max . | . . Secondary Targets 2 | . 2 Max Gunslinging Chain 1 | . 1 Shots Hit Robots 71 | 22 49 Core Hits 25 | 7 18 Critical Kills 1 | . 1 Critical Parts Destroyed 1 | 1 . Critical Strikes 3 | 1 2 Burn 1 | . 1 Destroy 2 | 1 1 Melee Attacks . | . . Impact . | . . Slashing . | . . Piercing . | . . Sneak Attacks . | . . Combat Hostiles . | . . Follow-up Attacks . | . . Damage Inflicted 767 | 225 542 Guns 763 | 225 538 Cannons . | . . Explosions . | . . Melee . | . . Ramming 4 | . 4 Kinetic 512 | 225 287 Thermal 251 | . 251 Explosive . | . . Electromagnetic . | . . Impact . | . . Slashing . | . . Piercing . | . . Highest Corruption . | . . Average Corruption . | . . Corruption Purged . | . . Corruption Blocked . | . . Overload Shots . | . . Overflow Damage . | . . Projectiles . | . . Explosions . | . . Melee . | . . Knockbacks . | . . Impact . | . . Kinetic . | . . Secondary . | . . Self-Inflicted Damage . | . . Shots . | . . Rammed . | . . Targets Rammed 2 | . 2 Kicked 2 | . 2 Crushed . | . . Highest Temperature 102 | 12 102 Average Temperature 37 | 8 39 Received Heat Transfer 699 | 24 675 Siege Activations . | . . Robots Corrupted . | . . Combat Hostiles . | . . Parts Fried . | . . Impact Corruptions . | . . Robots Melted . | . . Combat Hostiles . | . . Parts Melted . | . . Heat Transferred 814 | . 814 Parts Sabotaged . | . . Parts Stolen . | . . Parts Stripped . | . . Power Chain Reactions . | . . Alert | -11 -10 ------- Run | Yrd Mat Peak Influence 109 | 35 109 Initial 22 | . 22 Average 50 | 14 69 Maximum Alert Level . | . . Low Security (%) 100 | 100 100 Level 1 . | . . Level 2 . | . . Level 3 . | . . Level 4 . | . . Level 5 . | . . High Security . | . . Max Security . | . . Squads Dispatched 1 | . 1 Investigation . | . . Extermination . | . . Reinforcement 1 | . 1 Assault . | . . Garrison . | . . Intercept . | . . Searches Triggered . | . . Construction Impeded . | . . Haulers Reinforced . | . . Active Scanning Responses . | . . Cargo Convoy Interrupts . | . . Stealth | -11 -10 --------- Run | Yrd Mat Distress Signals 2 | . 2 Communications Jammed . | . . Distress Signals . | . . Times Spotted 14 | 1 13 Peak Tracking Total 5 | 1 5 Tactical Retreats . | . . Traps | -11 -10 ------- Run | Yrd Mat Traps Triggered . | . . Indirectly . | . . Trap Hack Attempts . | . . Triggered . | . . Disarmed . | . . Reprogrammed . | . . Reused . | . . Traps Extracted . | . . Installed . | . . Triggered . | . . Machines | -11 -10 ---------- Run | Yrd Mat Machines Disabled . | . . Max in Single Turn . | . . Machines Repaired . | . . Machines Dismantled . | . . Machines Sabotaged . | . . Overloaded Fab Kills . | . . Hacking | -11 -10 --------- Run | Yrd Mat Machines Accessed . | . . Terminals . | . . Fabricators . | . . Repair Stations . | . . Recycling Units . | . . Scanalyzers . | . . Garrison Access . | . . Total Hacks . | . . Successful . | . . Failed . | . . Catastrophic . | . . Database Lockouts . | . . Manual . | . . Terminals . | . . Fabricators . | . . Repair Stations . | . . Recycling Units . | . . Scanalyzers . | . . Garrison Access . | . . Terminal Hacks . | . . Fabricator Hacks . | . . Repair Station Hacks . | . . Recycling Unit Hacks . | . . Scanalyzer . | . . Garrison Access Hacks . | . . Unauthorized Hacks . | . . Terminals . | . . Fabricators . | . . Repair Stations . | . . Recycling Units . | . . Scanalyzers . | . . Garrison Access . | . . Data Cores Recovered . | . . Used . | . . Hacking Detections . | . . Full Trace Events . | . . Feedback Events . | . . Feedback Blocked . | . . Robot Schematics Acquired . | . . Robots Built . | . . Authchips . | . . Time . | . . Total Robot Build Rating . | . . Part Schematics Acquired . | . . Parts Built . | . . Authchips . | . . Time . | . . Total Part Build Rating . | . . Parts Repaired . | . . Time . | . . Parts Recycled . | . . Recycled Matter . | . . Retrieved Matter . | . . Retrieved Components . | . . Parts Scanalyzed . | . . Part Schematics Acquired . | . . Parts Damaged . | . . Bothacking | -11 -10 ------------ Run | Yrd Mat Used RIF Installer . | . . Robots Hacked . | . . Non-combat . | . . Combat . | . . Robot Hacks Applied . | . . Relay Couplers Released . | . . Fabnet Peak Effective % . | . . Robots Rewired . | . . Allies Hacked . | . . Hacks Repelled . | . . Allies | -11 -10 -------- Run | Yrd Mat Total Allies . | . . Largest Group . | . . Highest-Rated Group . | . . Highest-Rated Ally . | . . Total Orders . | . . Ally Attacks . | . . Total Damage . | . . Kills . | . . Allies Corrupted . | . . Allies Melted . | . . Intel | -11 -10 ------- Run | Yrd Mat Robot Analysis Total . | . . Derelict Logs Recovered . | . . Drone Launches . | . . Drone Recoveries . | . . Exploration | -11 -10 ------------- Run | Yrd Mat Turns Passed 513 | 175 338 Spaces Moved 169 | 102 67 Core 15 | 13 2 Treads . | . . Legs 154 | 89 65 Wheels . | . . Hover . | . . Flight . | . . Fastest Speed 50 | 50 120 Average Speed 198 | 111 331 Slowest Speed 1450 | 120 1450 Overloaded Moves . | . . Propulsion Burnouts . | . . Robots Hopped . | . . Cave-ins Triggered . | . . Exploration Rate (%) 11 | 7 15 Regions Visited 1 Branch Regions . Pre-discovered Areas . | . . Known Exits Taken . | . . Unknown Exits Taken 1 | 1 . Scrap Searched . | . . Spaces Dug . | . . Terrain Destroyed . | . . Melee . | . . Projectile . | . . AOE . | . . Terrain Rammed . | . . Walls Destroyed . | . . Machines Disabled . | . . Actions | -11 -10 --------- Run | Yrd Mat Total 255 | 133 122 Wait . | . . Move 168 | 101 67 Hop . | . . Pick Up 9 | 6 3 Fast Attach 8 | 7 1 Attach 5 | . 5 Detach . | . . Swap 4 | 2 2 Drop 2 | 2 . Fire 57 | 15 42 Melee . | . . Ram . | . . Kick 2 | . 2 Crush . | . . Escape Stasis . | . . Rewire . | . . Trap . | . . Miscellaneous . | . . Route ------- -11/Scrapyard -10/Materials History --------- Turn | Location | Event 2 | -11/Scrapyard | Met Revision 17 61 | -11/Scrapyard | Discovered new exit (range 8) 176 | -11/Scrapyard | Entered Materials 306 | -10/Materials | Build established: Mutant 347 | -10/Materials | Lost 4 parts (1p2n1w) 441 | -10/Materials | Core integrity fell below 50% 493 | -10/Materials | Lost 4 parts (2n1u1w) 493 | -10/Materials | Core integrity fell below 20% 514 | -10/Materials | Destroyed by G-34 Mercenary with Small Laser Last Messages --------------- 00400_ W-16 Scout destroyed. 00406_ R-06 Scavenger collects Imp. Heat Sink. 00410_ R-06 Scavenger collects Hover Unit. 00412_ Acquired Signal Interpreter. 00417_ Acquired Sensor Array. 00418_ Acquired 10 matter. 00420_ W-16 Scout sends out distress signal. 00438_ Med. Laser destroyed. 00450_ Seismic Detector destroyed. 00457_ Aluminum Leg destroyed. 00479_ K-01 Serf collects debris. 00485_ Kicked G-34 Mercenary out of the way. 00485_ K-01 Serf collects debris. 00492_ Kicked G-34 Mercenary. 00492_ G-34 Mercenary destroyed. 00492_ K-01 Serf collects debris. 00495_ Aluminum Leg destroyed. 00499_ K-01 Serf collects debris. 00501_ R-06 Scavenger collects Sml. Laser. 00503_ K-01 Serf collects debris. Map ----- +----------------------------------------------------+ | ????????????????????????????????????????? | | ????????????????????????????????????????? | | ????????????????????????????????????????? | | ????????????????????????????????????????? | | ????????????????????????????????????????? | | ????????????????????????????????????????? | | ????????????????????????????????????????? | | ????????????????????????????????????????? | | ????????????????????????????????????????? | | ????????????????????????????????????????? | | ????????????????????????????????????????? | | ????????????????? ??????????????????????? | | ????????????????????????????????????????? | | ????????????????????????????????????????? | | ????????????????????????????????????????? | | ????????????????????? ???? ?????????????? | | ?????? ????????##???? #?????????????????? | | ????????????????????? #?????????????????? | | ??????#?????????????? #?#??###??????????? | | ??????????????????### ## #??????????? | | ??????????????##### ???????? | | ?????########## %%/ ???????? | | ???#?# ## %# ???????? | | ?????# ## g# ## #??????????? | | ?????# ## # #?????##??????????? | | ??######## ## @ # #?????????????????? | | ??? # ## # #?#???????????????? | | ???"""" # ##% # ###########???????? | | ??""""" # ###+## #???????? | | # """"" # % #???????? | | # """"" + #???????? | | # """"" # """ """ % """ #???????? | | # """"" ### """"""""" "T" #???????? | | # """"" #?# """"" #???????? | | # #?# #???????? | | ?#########?# #???????? | | ???????????# ??????? | | ???????????# ????? | | ???????????# ???? | | #??????????# ############ ########???? | | ???????????# #??????????? #??????????? | | ???????????# #??????????? #??????????? | | ???????????# ???????????? #??????????? | | ?????????? # ???????????? +??????????? | | ???????????+ ???????????? #??????????? | | ???????????? ???????????? #??????????? | | ??????????????????????????##????????????? | | ????????????????????????????????????????? | | ????????????????????????????????????????? | | ????????????????????????????????????????? | +----------------------------------------------------+ Best States ------------- Heat Dissipation 25 Energy Generation 10 Energy Capacity 250 Matter Stores 300 Matter Capacity 300 Sight Range 16 Terrain Scan Range 16 Terrain Scan Density 10 Evasion (%) 55 Item Schematics ----------------- None Robot Schematics ------------------ None Fabricated ------------ Nothing Alien Tech Used ----------------- None Achievements -------------- None Challenges ------------ None Game ------ Seed NetworkInsulatedImmobilizer Manual? 0 Play Time 00:12:24 Cumulative 3.8 hours Start 2024.10.07 @ 01:28:29 End 2024.10.07 @ 01:39:33 Sessions 1 Manual Loads 0 Difficulty Rogue Special Mode None Game No. 3 Rogue 3 Adventurer 0 Explorer 0 Win Type - Total 0 Types 0/0/0/0/0/0/0/0/0 Lore% 6 Gallery% 1 Achievement% 5 Wizard Run 0 Options --------- Layout 2 ASCII 0 Keyboard 0 Movement Numpad Keybinds 0 Fullscreen 1 Font 32/SmallcapsGlow Map View 50x44 Zoom Use 0% Tactical HUD 1 Map Filters NONE Filters NONE Steam X RUN: 6a3408f0-9a86-4643-955b-aff616b96cf4